bitfinex/quotes_SOLUSD_20250721
["timestamp","ask_amount","ask_price","bid_price","bid_amount"]
[1753121043821,0.1,196.42,196.41,60.11589001]
[1753121044031,0.1,196.42,196.41,59.84521346]
[1753121044236,0.67,196.51,196.45,16.78468397]
[1753121044431,0.5098919,196.52,196.5,6.55120604]
[1753121044626,0.67,196.51,196.48,6.55120604]
[1753121044826,0.5098919,196.5,196.48,6.55120604]
[1753121045029,0.67,196.52,196.49,6.55120604]
[1753121045227,0.5098919,196.52,196.51,6.55120604]
[1753121045721,0.5098919,196.53,196.51,6.55120604]
[1753121045944,0.5098919,196.53,196.52,6.55120604]
[1753121046243,1.1798919,196.57,196.53,16.78468397]
[1753121046418,0.5098919,196.57,196.56,6.55120604]
[1753121046622,0.5098919,196.57,196.55,6.55120604]
[1753121047123,0.67,196.56,196.54,6.55120604]
[1753121047328,0.5098919,196.55,196.54,6.55120604]
[1753121047527,1.1798919,196.55,196.5,17.46468397]
[1753121047739,1.1798919,196.55,196.53,6.55120604]
[1753121047934,7.22120604,196.54,196.47,26.4351809]
[1753121048140,11.63974664,196.52,196.47,0.4351809]
[1753121048424,6.55120604,196.49,196.47,0.4351809]
[1753121048639,1.1798919,196.51,196.47,0.4351809]
[1753121048640,1.1798919,196.51,196.48,6.55120604]
[1753121049130,0.67,196.5,196.48,6.55120604]
[1753121049442,0.5098919,196.51,196.48,6.55120604]
[1753121049646,0.5098919,196.51,196.49,6.55120604]
[1753121049843,0.5098919,196.5,196.48,6.55120604]
[1753121050047,0.5098919,196.52,196.48,6.55120604]
[1753121050349,0.67,196.51,196.47,0.4351809]
[1753121050531,1.1798919,196.5,196.47,0.4351809]
[1753121050719,0.5098919,196.5,196.48,6.55120604]
[1753121050920,0.5098919,196.5,196.47,0.4351809]
[1753121050921,1.1798919,196.5,196.47,6.98638694]
[1753121051129,1.1798919,196.5,196.47,0.4351809]
[1753121051130,0.67,196.49,196.47,0.4351809]
[1753121051328,1.1798919,196.49,196.47,0.4351809]
[1753121051764,0.5098919,196.49,196.47,0.4351809]
[1753121052056,36.76,196.54,196.47,0.4351809]
[1753121052057,0.5098919,196.53,196.48,7.23120604]
[1753121052264,1.1798919,196.53,196.49,6.55120604]
[1753121052759,0.67,196.52,196.49,6.55120604]
[1753121053152,1.1798919,196.51,196.47,6.98638694]
[1753121053335,0.5098919,196.51,196.48,6.55120604]
[1753121053833,1.1798919,196.51,196.48,6.55120604]
[1753121054451,0.06,196.49,196.48,6.55120604]
[1753121055566,0.06,196.49,196.47,0.4351809]
[1753121055737,0.06,196.49,196.47,6.98638694]
[1753121055936,0.06,196.49,196.48,6.55120604]
[1753121058852,0.06,196.49,196.48,7.23120604]
[1753121059257,0.06,196.49,196.48,6.55120604]
[1753121059967,0.06,196.49,196.47,6.98638694]
[1753121062061,0.06,196.49,196.48,24.01589001]
[1753121062267,0.06,196.49,196.48,29.10546655]
[1753121063673,0.06,196.49,196.48,24.01589001]
[1753121063968,0.73,196.49,196.47,6.98638694]
[1753121064464,0.06,196.49,196.48,7.23120604]
[1753121064669,0.06,196.49,196.48,6.55120604]
[1753121065250,0.06,196.49,196.47,7.66638694]
[1753121065745,0.06,196.49,196.47,0.4351809]
[1753121065941,5.75957654,196.48,196.47,0.4351809]
[1753121066147,0.06,196.49,196.47,6.98638694]
[1753121066341,0.06,196.49,196.48,6.55120604]
[1753121066850,0.73,196.49,196.47,0.4351809]
[1753121067054,1.2398919,196.49,196.47,0.4351809]
[1753121067257,6.32927186,196.49,196.47,0.4351809]
[1753121067446,1.2398919,196.49,196.47,0.4351809]
[1753121068450,0.5698919,196.49,196.47,0.4351809]
[1753121069043,5.65932496,196.49,196.47,0.4351809]
[1753121069561,0.5698919,196.49,196.47,0.4351809]
[1753121070570,0.67,196.48,196.47,0.4351809]
[1753121070870,0.5698919,196.49,196.47,0.4351809]
[1753121071257,5.65928324,196.49,196.47,0.4351809]
[1753121071448,6.31928324,196.49,196.47,0.4351809]
[1753121074262,0.06,196.49,196.47,0.4351809]
[1753121074463,0.06,196.49,196.47,6.98638694]
[1753121075055,0.06,196.49,196.47,0.4351809]
[1753121076366,0.06,196.49,196.48,24.03589001]
[1753121076761,0.06,196.49,196.48,57.0960537]
[1753121077072,0.06,196.53,196.52,49.33589001]
[1753121077466,0.06,196.53,196.52,50.03589001]
[1753121077665,0.06,196.53,196.52,55.12443061]
[1753121078174,0.06,196.53,196.52,55.63328467]
[1753121078854,0.06,196.57,196.56,42.78468397]
[1753121079054,0.06,196.57,196.56,85.99589001]
[1753121079271,0.06,196.57,196.56,86.69589001]
[1753121079766,0.06,196.57,196.56,91.78339509]
[1753121080073,0.06,196.57,196.56,86.69589001]
[1753121080277,0.06,196.57,196.56,50.03589001]
[1753121080658,0.06,196.57,196.56,48.57218905]
[1753121080881,0.06,196.57,196.56,55.12339509]
[1753121082178,0.06,196.57,196.56,31.08750508]
[1753121082479,0.06,196.57,196.56,55.12339509]
[1753121084960,0.06,196.57,196.56,91.76339509]
[1753121085156,0.06,196.57,196.55,5.08764184]
[1753121085396,0.06,196.57,196.56,6.55120604]
[1753121085664,0.06,196.57,196.56,24.03589001]
[1753121085988,0.06,196.57,196.56,6.55120604]
[1753121086173,0.06,196.57,196.54,6.55120604]
[1753121086174,0.72,196.57,196.54,6.55120604]
[1753121087762,0.66,196.56,196.54,6.55120604]
[1753121088260,0.06,196.57,196.54,6.55120604]
[1753121088787,0.66,196.56,196.5,6.55120604]
[1753121088962,0.5098919,196.55,196.5,6.55120604]
[1753121089172,0.66,196.54,196.5,6.55120604]
[1753121090184,0.5098919,196.56,196.52,6.55120604]
[1753121090386,0.66,196.55,196.52,6.55120604]
[1753121090582,1.1698919,196.54,196.49,0.1130578]
[1753121090780,7.21120604,196.53,196.49,0.1130578]
[1753121090985,6.55120604,196.51,196.49,0.1130578]
[1753121091282,0.5098919,196.5,196.49,0.1130578]
[1753121091488,6.55120604,196.54,196.49,0.1130578]
[1753121091690,1.1698919,196.53,196.49,0.1130578]
[1753121091876,0.66,196.52,196.49,0.1130578]
[1753121092389,7.06109794,196.53,196.49,0.1130578]
[1753121092597,0.66,196.51,196.49,0.1130578]
[1753121092798,0.5098919,196.53,196.49,7.36426384]
[1753121093095,0.5098919,196.54,196.49,7.36426384]
[1753121093291,0.66,196.53,196.49,7.36426384]
[1753121093486,0.5098919,196.52,196.49,0.1130578]
[1753121093686,0.5098919,196.52,196.49,6.66426384]
[1753121093883,0.5098919,196.52,196.49,0.1130578]
[1753121094080,1.1698919,196.52,196.49,0.1130578]
[1753121094892,0.5098919,196.53,196.49,0.1130578]
[1753121095106,1.1698919,196.53,196.49,0.1130578]
[1753121095310,0.5098919,196.53,196.5,6.55120604]
[1753121095482,1.2298919,196.57,196.52,6.55120604]
[1753121095682,0.66,196.56,196.53,6.55120604]
[1753121096198,0.06,196.57,196.55,6.55120604]
[1753121097495,0.06,196.57,196.56,6.55120604]
[1753121097696,0.06,196.57,196.56,7.25120604]
[1753121098095,0.06,196.57,196.56,12.33871112]
[1753121099696,0.06,196.57,196.56,29.12339509]
[1753121101798,0.06,196.61,196.6,16.78468397]
[1753121102012,0.06,196.61,196.6,32.55120604]
[1753121102385,0.06,196.61,196.6,6.55120604]
[1753121102786,0.06,196.61,196.6,7.27120604]
[1753121103187,0.06,196.61,196.6,6.55120604]
[1753121103386,0.06,196.61,196.6,12.35767602]
[1753121104001,0.06,196.61,196.6,11.63767602]
[1753121104197,0.06,196.61,196.6,12.35767602]
[1753121104403,0.06,196.61,196.6,6.55120604]
[1753121104994,0.06,196.61,196.6,7.27120604]
[1753121105399,0.06,196.61,196.6,12.35767602]
[1753121105818,0.06,196.61,196.6,61.69356603]
[1753121106518,0.06,196.61,196.6,98.27356603]
[1753121107617,1e-08,196.65,196.6,101.70511231]
[1753121107950,0.06,196.69,196.64,49.33589001]
[1753121108123,0.06,196.69,196.68,49.33589001]
[1753121108413,0.06,196.69,196.68,85.91589001]
[1753121108609,0.06,196.69,196.68,86.63589001]
[1753121109118,0.66,196.78,196.69,16.78468397]
[1753121109421,0.66,196.78,196.73,6.55120604]
[1753121109596,0.66,196.78,196.74,5.08285046]
[1753121109798,13.23849794,196.79,196.74,5.08285046]
[1753121109996,0.66,196.77,196.74,5.08285046]
[1753121110414,0.66,196.76,196.72,5.08336722]
[1753121110616,0.66,196.75,196.72,11.63457326]
[1753121111010,0.66,196.77,196.72,11.63457326]
[1753121111513,0.66,196.76,196.72,6.55120604]
[1753121111812,0.66,196.76,196.72,11.6345352]
[1753121112319,0.5098919,196.78,196.73,7.27120604]
[1753121112527,0.5098919,196.78,196.74,6.55120604]
[1753121112828,1.1698919,196.79,196.75,6.55120604]
[1753121113117,1.1698919,196.79,196.69,6.55120604]
[1753121113118,6.55120604,196.76,196.69,6.55120604]
[1753121113322,6.55120604,196.73,196.67,23.33589001]
[1753121113620,8.19190604,196.8,196.67,23.33589001]
[1753121113621,5.74229783,196.77,196.72,6.55120604]
[1753121113797,1.1698919,196.76,196.72,6.55120604]
[1753121114002,0.66,196.75,196.71,6.55120604]
[1753121114404,0.66,196.75,196.71,1.55120604]
[1753121114703,0.66,196.82,196.74,6.55120604]
[1753121114901,0.5098919,196.83,196.8,6.55120604]
[1753121115208,0.5098919,196.84,196.82,6.55120604]
[1753121115393,0.5098919,196.88,196.83,7.27120604]
[1753121115594,1.1698919,196.88,196.84,11.63147427]
[1753121115802,0.5098919,196.9,196.86,6.55120604]
[1753121116097,7.21120604,196.89,196.83,6.55120604]
[1753121116422,1.1698919,196.88,196.83,6.55120604]
[1753121116598,0.5098919,196.88,196.84,6.55120604]
[1753121116799,0.5098919,196.88,196.83,0.72]
[1753121117004,1.1698919,196.88,196.84,6.55120604]
[1753121117211,0.66,196.87,196.84,10.39834013]
[1753121117511,1.1698919,196.89,196.85,10.39834013]
[1753121117718,16.13683447,196.91,196.85,11.11834013]
[1753121117931,0.5098919,196.9,196.86,10.39834013]
[1753121118115,0.5098919,196.9,196.85,11.11834013]
[1753121118323,1.1698919,196.9,196.85,11.11834013]
[1753121118620,15.47686481,196.91,196.86,11.11834013]
[1753121118621,5.58841658,196.91,196.86,11.11834013]
[1753121118927,0.66,196.9,196.85,10.39834013]
[1753121119104,1.1698919,196.89,196.85,10.39834013]
[1753121119306,0.66,196.88,196.85,10.39834013]
[1753121119604,0.66,196.88,196.84,10.89834013]
[1753121119804,5.58903711,196.89,196.84,10.89834013]
[1753121119805,0.5098919,196.89,196.85,0.72]
[1753121120006,0.66,196.91,196.86,10.39834013]
[1753121120222,1.1698919,196.91,196.86,10.39834013]
[1753121120445,0.66,196.9,196.85,10.39834013]
[1753121120726,10.39834013,196.88,196.79,16.78468397]
[1753121120933,10.39834013,196.85,196.79,10.39834013]
[1753121121222,11.56823203,196.87,196.81,10.39834013]
[1753121121419,1.1698919,196.87,196.82,10.39834013]
[1753121121733,1.1698919,196.87,196.8,10.39834013]
[1753121121734,16.13809223,196.86,196.8,10.39834013]
[1753121121917,11.56823203,196.85,196.79,10.39834013]
[1753121122113,11.56823203,196.85,196.77,0.46317569]
[1753121122114,10.39834013,196.84,196.78,10.39834013]
[1753121122311,1.1698919,196.83,196.78,10.39834013]
[1753121122516,7.0975,196.85,196.8,10.39834013]
[1753121122704,7.6073919,196.85,196.8,11.11834013]
[1753121123003,7.6073919,196.85,196.81,10.39834013]
[1753121123004,0.66,196.85,196.81,10.39834013]
[1753121123208,0.5098919,196.86,196.82,10.39834013]
[1753121123422,1.1698919,196.87,196.82,10.39834013]
[1753121123600,0.66,196.86,196.81,11.11834013]
[1753121123806,0.66,196.86,196.82,10.39834013]
[1753121124001,39.2987919,196.88,196.83,10.39834013]
[1753121124233,0.66,196.91,196.87,10.39834013]
[1753121124427,11.62823203,196.93,196.87,11.11834013]
[1753121124728,10.39834013,196.91,196.86,10.39834013]
[1753121125029,0.5098919,196.92,196.88,10.39834013]
[1753121125333,1.1698919,196.92,196.88,10.39834013]
[1753121125923,0.5098919,196.92,196.88,11.11834013]
[1753121126236,0.06,196.93,196.92,16.78468397]
[1753121126411,0.06,196.93,196.92,27.1830241]
[1753121126603,0.06,196.93,196.92,27.9030241]
[1753121127450,1e-08,196.93,196.92,38.30136423]
[1753121127659,0.5098919,197.09,197.02,16.78468397]
[1753121127964,5.73241099,197.15,197.08,10.39834013]
[1753121128128,1.1698919,197.14,197.08,10.39834013]
[1753121128333,0.5098919,197.14,197.12,10.39834013]
[1753121128533,6.2322,197.18,197.12,10.39834013]
[1753121128534,0.5098919,197.17,197.13,10.39834013]
[1753121128836,0.5098919,197.17,197.1,0.72]
[1753121129031,10.39834013,197.19,197.13,10.39834013]
[1753121129251,1.1698919,197.25,197.18,10.39834013]
[1753121129440,11.05834013,197.25,197.17,1.22717654]
[1753121129632,6.23991916,197.24,197.2,10.39834013]
[1753121129837,0.66,197.23,197.2,10.39834013]
[1753121130241,0.66,197.26,197.17,16.78468397]
[1753121130441,0.5098919,197.25,197.17,16.78468397]
[1753121130648,0.66,197.26,197.18,0.72]
[1753121130843,1.1698919,197.26,197.18,0.72]
[1753121131040,1.1698919,197.26,197.19,17.29180907]
[1753121131041,5.06947515,197.26,197.19,17.29180907]
[1753121131237,0.5098919,197.32,197.25,10.39834013]
[1753121131531,0.7,197.31,197.26,10.39834013]
[1753121131739,0.5098919,197.32,197.28,10.39834013]
[1753121131950,5.57791183,197.32,197.28,10.39834013]
[1753121132133,5.76801993,197.32,197.23,1.66911768]
[1753121132339,5.76801993,197.32,197.29,10.39834013]
[1753121132641,5.76801993,197.32,197.24,17.48468397]
[1753121132642,1.2098919,197.31,197.27,10.86034186]
[1753121132978,1.2098919,197.31,197.27,0.46200173]
[1753121133145,0.7,197.31,197.27,10.86034186]
[1753121133347,5.57791183,197.32,197.27,10.86034186]
[1753121133348,5.06801993,197.32,197.3,10.39834013]
[1753121133549,5.06801993,197.32,197.28,10.39834013]
[1753121133765,1.2098919,197.31,197.28,10.39834013]
[1753121133959,1.2098919,197.31,197.27,0.46200173]
[1753121133960,0.7,197.3,197.27,0.46200173]
[1753121134141,17.73588729,197.34,197.27,0.46200173]
[1753121134142,1.2098919,197.33,197.28,10.39834013]
[1753121134338,0.7,197.32,197.27,0.46200173]
[1753121134538,0.5098919,197.31,197.27,0.46200173]
[1753121134874,0.5098919,197.33,197.27,0.46200173]
[1753121135043,11.09834013,197.31,197.27,0.46200173]
[1753121135243,10.39834013,197.28,197.27,0.46200173]
[1753121135446,10.39834013,197.28,197.15,0.7]
[1753121135447,20.79668026,197.28,197.15,0.7]
[1753121135662,5.07099391,197.2,197.15,11.09834013]
[1753121135965,11.09834013,197.19,197.16,0.28146313]
[1753121136274,10.90823203,197.18,197.16,0.28146313]
[1753121137060,11.09834013,197.17,197.05,0.7]
[1753121137239,0.5098919,197.16,197.05,0.7]
[1753121137448,36.44,197.15,197.07,15.65623353]
[1753121137672,5.0727946,197.13,197.06,17.49377231]
[1753121137856,0.5098919,197.12,197.08,0.70901639]
[1753121138060,0.7,197.11,197.08,0.70901639]
[1753121138456,0.5098919,197.12,197.08,0.70901639]
[1753121138646,0.7,197.11,197.08,0.70901639]
[1753121138846,1.2098919,197.1,197.08,0.70901639]
[1753121139048,16.35623353,197.09,197.08,0.70901639]
[1753121139667,21.43005767,197.09,197.08,0.70901639]
[1753121139979,5.07355224,197.11,197.08,0.70901639]
[1753121140186,0.5098919,197.16,197.09,16.35623353]
[1753121140477,15.65623353,197.11,197.08,0.70901639]
[1753121140656,15.65623353,197.09,197.08,0.70901639]
[1753121140980,52.77623353,197.09,197.08,0.70901639]
[1753121141146,52.77623353,197.09,196.93,36.42]
[1753121141147,78.77623353,197.09,196.96,0.7]
[1753121141345,15.65623353,197.02,196.97,15.65623353]
[1753121141574,15.65623353,196.99,196.93,16.35623353]
[1753121141778,20.73272104,196.99,196.93,16.35623353]
[1753121141971,15.65623353,196.98,196.93,16.35623353]
[1753121142171,15.65623353,196.97,196.93,0.7]
[1753121142481,15.65623353,196.99,196.94,16.35623353]
[1753121142671,15.65623353,196.99,196.93,15.65623353]
[1753121142862,15.65623353,197.0,196.95,0.7]
[1753121143070,15.65623353,196.98,196.92,16.35623353]
[1753121143652,0.5098919,196.97,196.92,16.35623353]
[1753121143858,36.42,197.01,196.96,15.65623353]
[1753121144185,15.65623353,197.01,196.95,15.65623353]
[1753121144391,15.65623353,196.99,196.94,0.7]
[1753121144685,15.65623353,196.95,196.9,0.7]
[1753121145266,15.65623353,196.95,196.89,32.4409175]
[1753121145267,15.65623353,196.97,196.91,16.35623353]
[1753121145464,16.16612543,197.0,196.95,15.65623353]
[1753121145663,0.5098919,197.02,196.96,0.7]
[1753121145855,36.42,197.03,196.96,6.28483317]
[1753121146091,36.42,197.03,196.97,16.35623353]
[1753121146265,36.42,197.03,196.98,15.65623353]
[1753121146460,15.65623353,197.04,196.99,0.7]
[1753121146661,15.65623353,197.04,197.0,0.7]
[1753121147166,16.16612543,197.04,197.0,0.7]
[1753121147366,0.5098919,197.04,197.0,0.7]
[1753121147571,52.58612543,197.07,197.01,16.35623353]
[1753121147774,15.65623353,197.09,197.03,15.65623353]
[1753121147984,36.42,197.08,197.03,15.65623353]
[1753121148276,36.42,197.08,197.04,0.7]
[1753121148866,36.9298919,197.08,197.03,15.65623353]
[1753121149066,36.42,197.08,197.03,15.65623353]
[1753121149260,42.00402744,197.08,197.03,15.65623353]
[1753121149468,15.65623353,197.05,196.99,15.65623353]
[1753121149674,0.5098919,197.04,196.98,16.78468397]
[1753121149862,15.65623353,197.04,196.98,32.4409175]
[1753121150067,0.5098919,197.03,196.98,32.4409175]
[1753121150282,15.65623353,197.04,196.98,32.4409175]
[1753121150603,15.65623353,197.04,196.98,33.1409175]
[1753121151093,21.24149466,197.03,196.99,0.7]
[1753121151273,15.65623353,197.01,196.99,0.7]
[1753121151458,15.65623353,197.0,196.95,0.7]
[1753121151790,37.07,197.02,196.93,16.78468397]
[1753121151791,15.65623353,196.98,196.93,16.78468397]
[1753121151967,15.65623353,196.97,196.93,0.7]
[1753121152165,52.07623353,196.98,196.94,0.7]
[1753121152676,52.07623353,196.98,196.92,15.65623353]
[1753121152876,41.49688702,196.98,196.92,15.65623353]
[1753121153068,36.42,196.97,196.92,15.65623353]
[1753121153266,36.42,196.97,196.93,16.35623353]
[1753121153585,36.42,196.99,196.95,15.65623353]
[1753121153782,36.42,196.99,196.94,15.65623353]
[1753121153985,36.42,196.99,196.94,16.35623353]
[1753121154184,52.07623353,196.99,196.94,0.7]
[1753121154497,52.07623353,196.99,196.93,16.78468397]
[1753121154691,52.07623353,196.99,196.93,32.4409175]
[1753121154987,36.42,196.99,196.94,16.35623353]
[1753121155172,36.42,196.99,196.95,15.65623353]
[1753121155493,36.42,196.99,196.96,0.7]
[1753121155889,36.42,196.99,196.96,1.4]
[1753121156996,36.42,196.99,196.96,6.47716822]
[1753121157298,36.42,196.99,196.97,0.7]
[1753121157480,15.65623353,197.01,196.97,0.7]
[1753121157679,52.07623353,197.01,196.97,0.7]
[1753121158190,57.15214607,197.01,196.97,0.7]
[1753121158370,57.15214607,197.01,196.96,0.7]
[1753121158573,57.80214607,197.01,196.96,0.7]
[1753121158974,52.07623353,197.01,196.96,1.4]
[1753121159169,36.42,197.01,196.96,16.16369852]
[1753121159374,36.42,197.01,196.97,0.7]
[1753121159579,0.5098919,197.05,196.97,10.38656779]
[1753121159778,36.42,197.04,196.98,0.7]
[1753121160099,36.42,197.04,196.96,23.069532]
[1753121160100,10.38656779,197.0,196.96,0.7]
[1753121160285,36.42,196.99,196.96,0.7]
[1753121160478,36.42,196.99,196.94,5.7774725]
[1753121160674,36.42,196.99,196.96,10.38656779]
[1753121160879,10.89645969,196.98,196.92,11.08656779]
[1753121161088,11.54645969,196.98,196.92,11.08656779]
[1753121161289,11.54645969,196.98,196.91,5.07837703]
[1753121161290,10.38656779,196.94,196.88,11.02976752]
[1753121161493,10.38656779,196.91,196.88,0.64319973]
[1753121161899,10.89645969,196.9,196.88,0.64319973]
[1753121162078,46.80656779,196.89,196.88,0.64319973]
[1753121162274,47.45656779,196.89,196.88,0.64319973]
[1753121162801,53.04543779,196.89,196.88,0.64319973]
[1753121163187,58.35585793,196.89,196.85,0.03]
[1753121163491,15.69698793,196.86,196.85,0.03]
[1753121163996,36.42,196.86,196.85,0.03]
[1753121164889,52.11698793,196.86,196.85,0.03]
[1753121165391,57.84674003,196.86,196.85,0.03]
[1753121165588,36.42,196.86,196.85,0.03]
[1753121165789,52.11698793,196.86,196.85,0.03]
[1753121165992,36.42,196.86,196.85,0.03]
[1753121166392,52.11698793,196.86,196.85,0.03]
[1753121166707,41.4997521,196.86,196.85,0.03]
[1753121166903,57.19674003,196.86,196.85,0.03]
[1753121167306,36.42,196.86,196.85,0.03]
[1753121167512,57.84674003,196.86,196.75,0.7]
[1753121167718,15.69698793,196.78,196.73,0.2]
[1753121167892,36.42,196.77,196.73,15.89698793]
[1753121168093,36.42,196.77,196.74,0.7]
[1753121168502,36.42,196.77,196.73,0.2]
[1753121168710,36.42,196.77,196.73,0.9]
[1753121168905,36.42,196.77,196.75,15.69698793]
[1753121169214,36.44,196.78,196.76,0.7]
[1753121169993,36.44,196.8,196.77,16.39698793]
[1753121170196,0.5098919,196.85,196.79,15.69698793]
[1753121170197,36.44,196.82,196.79,15.69698793]
[1753121170519,36.9498919,196.82,196.77,0.7]
[1753121170810,36.44,196.82,196.78,21.47880518]
[1753121171107,36.44,196.82,196.78,0.7]
[1753121172006,36.44,196.82,196.79,0.7]
[1753121172408,36.44,196.82,196.76,5.08229331]
[1753121172705,15.69698793,196.79,196.73,32.6816719]
[1753121172890,36.44,196.78,196.75,20.77958005]
[1753121173090,36.44,196.78,196.76,0.7]
[1753121173623,36.44,196.78,196.74,20.77981595]
[1753121173923,36.44,196.78,196.74,21.47981595]
[1753121174089,15.69698793,196.77,196.73,0.2]
[1753121174285,16.20687983,196.77,196.73,0.2]
[1753121174699,15.69698793,196.75,196.73,0.2]
[1753121174907,36.44,196.74,196.73,0.2]
[1753121175287,52.64687983,196.74,196.73,0.2]
[1753121175493,52.13698793,196.74,196.73,0.2]
[1753121176904,36.44,196.74,196.73,0.2]
[1753121177518,52.13698793,196.74,196.73,0.2]
[1753121178906,36.44,196.74,196.73,0.2]
[1753121179103,52.13698793,196.74,196.73,0.2]
[1753121179705,57.21983839,196.74,196.73,0.2]
[1753121179911,57.86983839,196.74,196.73,0.2]
[1753121180129,16.34698793,196.74,196.73,0.2]
[1753121180319,0.5098919,196.74,196.73,0.2]
[1753121180498,16.20687983,196.74,196.73,0.2]
[1753121180817,16.85687983,196.74,196.73,0.2]
[1753121181008,21.93973029,196.74,196.73,0.2]
[1753121181215,6.24274236,196.74,196.73,0.2]
[1753121181414,21.93973029,196.74,196.73,0.2]
[1753121181734,57.72973029,196.74,196.73,0.2]
[1753121181915,36.44,196.74,196.73,0.2]
[1753121183055,0.5098919,196.78,196.73,16.59698793]
[1753121183223,0.5098919,196.78,196.73,10.60916235]
[1753121183420,36.44,196.77,196.74,0.7]
[1753121183624,36.44,196.77,196.73,5.28300537]
[1753121184208,36.44,196.77,196.73,0.2]
[1753121184411,0.65,196.82,196.74,0.7]
[1753121184627,47.35905425,196.81,196.75,10.40916235]
[1753121184822,36.9498919,196.81,196.75,10.40916235]
[1753121185123,0.5098919,196.81,196.76,10.40916235]
[1753121185300,0.5098919,196.81,196.78,10.40916235]
[1753121185501,0.5098919,196.85,196.8,10.40916235]
[1753121185721,36.44,196.84,196.83,10.40916235]
[1753121185921,36.44,196.84,196.83,11.10916235]
[1753121186825,0.5098919,196.88,196.83,11.10916235]
[1753121187026,36.44,196.87,196.86,10.40916235]
[1753121187229,13.94140676,196.96,196.86,16.18890095]
[1753121187409,13.94140676,196.96,196.89,10.40916235]
[1753121187410,10.40916235,196.94,196.89,10.40916235]
[1753121187610,10.91905425,196.93,196.89,0.7]
[1753121187806,36.44,196.92,196.87,10.40916235]
[1753121188009,0.5098919,196.91,196.87,11.10916235]
[1753121188207,36.9498919,196.92,196.88,10.40916235]
[1753121188536,0.5098919,196.94,196.88,11.10916235]
[1753121188713,36.44,196.93,196.88,11.10916235]
[1753121189106,10.91905425,196.94,196.88,11.10916235]
[1753121189312,36.44,196.93,196.88,0.7]
[1753121189527,10.91905425,196.92,196.85,5.78001016]
[1753121189707,10.91905425,196.92,196.86,0.7]
[1753121190031,0.06,196.88,196.86,0.7]
[1753121190745,0.06,196.88,196.86,11.10916235]
[1753121190917,0.06,196.88,196.83,1.20805263]
[1753121191119,0.06,196.88,196.86,10.40916235]
[1753121191312,0.06,196.88,196.87,11.08916235]
[1753121191508,0.06,196.88,196.84,0.68]
[1753121191712,10.97905425,196.88,196.82,5.76078447]
[1753121191913,0.5698919,196.88,196.82,16.16994682]
[1753121192115,10.40916235,196.86,196.82,0.68]
[1753121192336,47.35905425,196.85,196.79,11.08916235]
[1753121192514,36.44,196.85,196.81,10.40916235]
[1753121192702,0.06,196.88,196.82,11.08916235]
[1753121192907,36.42,196.87,196.84,10.40916235]
[1753121193114,36.42,196.87,196.85,0.68]
[1753121193330,0.06,196.88,196.86,0.68]
[1753121193833,0.06,196.88,196.87,0.68]
[1753121194433,0.06,196.88,196.87,16.16865643]
[1753121195552,0.06,196.88,196.87,32.9533404]
[1753121195923,0.06,196.88,196.87,33.4612898]
[1753121196332,0.06,196.88,196.87,23.05212745]
[1753121196512,0.06,196.88,196.87,16.16865643]
[1753121196714,0.06,196.88,196.87,11.08916235]
[1753121197018,0.06,196.88,196.84,10.40916235]
[1753121197244,0.06,196.88,196.86,0.68]
[1753121197416,0.06,196.88,196.86,11.08916235]
[1753121197743,0.06,196.88,196.87,0.68]
[1753121198342,0.06,196.88,196.84,10.40916235]
[1753121198632,0.06,196.88,196.84,15.48934771]
[1753121199039,0.06,196.88,196.87,10.40916235]
[1753121199252,0.06,196.88,196.87,10.91711175]
[1753121199410,0.06,196.88,196.87,11.59711175]
[1753121199615,0.06,196.96,196.91,26.0]
[1753121199848,36.48,196.96,196.94,10.40916235]
[1753121200037,36.48,196.96,196.91,26.0]
[1753121200038,0.06,196.96,196.95,11.08916235]
[1753121200546,0.06,196.96,196.95,32.95127714]
[1753121201259,0.06,196.96,196.95,22.54211479]
[1753121202960,0.06,196.96,196.95,32.95127714]
[1753121204645,0.06,196.96,196.95,22.54211479]
[1753121204957,0.06,196.96,196.95,32.95127714]
[1753121206239,0.06,196.96,196.95,95.35127714]
[1753121206455,0.06,196.96,196.95,96.91647714]